Cogmind - Beta 13 *** ADVENTURER MODE // 2024.04.19 @ 21:05:03 Player: afilthyscrub Result: Destroyed by Y-45 Defender with Heavy Assault Rifle Performance ------------- Evolutions (2) 1000 Regions Visited (3) 600 Robots Destroyed (72) 360 Value Destroyed (2253) 2253 Prototype IDs (2) 40 Alien Tech Used (0) 0 Bonus (0) 0 TOTAL SCORE: 4253 Bonus ------- None Cogmind --------- Core Integrity 0/550 Matter 6/300 Energy 100/100 System Corruption 0% Temperature Cool (16) Movement Core (700) Ox13 Location -8/Materials Parts ------- > --- POWER (2) -------- (None) > --- PROPULSION (3) --- (None) > --- UTILITY (3) ------ High-capacity Storage Unit ECM Suite > --- WEAPON (3) ------- (None) > --- INVENTORY (20) --- Light Treads Light Treads Flight Unit Large Battery (200) Medium Armor Plating High-powered Shotgun Peak State ------------ > --- POWER ------------ Light Nuclear Core Micro Nuclear Core > --- PROPULSION ------- VSS Leg VSS Leg VSS Leg > --- UTILITY ---------- High-capacity Storage Unit ECM Suite Propulsion Shielding > --- WEAPON ----------- High-powered Shotgun High-powered Shotgun Mini Grenade Launcher > --- INVENTORY -------- Ion Engine Ion Engine Light Deuterium Engine Micro Nuclear Core Light Treads Light Treads VSS Leg Flight Unit Heat Sink Large Battery Medium Armor Plating Heavy Assault Rifle Heavy Assault Rifle [Rating: 29] Favorites ----------- Power Ion Engine Engine Ion Engine Power Core Micro Nuclear Core Propulsion VSS Leg Treads Light Treads Leg VSS Leg Hover Unit Hover Unit Flight Unit Flight Unit Utility High-capacity Storage Unit Device Seismic Detector Storage High-capacity Storage Unit Processor Signal Interpreter Protection Propulsion Shielding Weapon Heavy Assault Rifle Energy Gun EM Pulse Gun Energy Cannon Beam Cannon Ballistic Gun Heavy Assault Rifle Ballistic Cannon Assault Cannon Launcher Mini Grenade Launcher Build | -11 -10 -9 -8 ------- Run | Yrd Mat Mat Mat Slots Evolved 4 | . . 2 2 Power 1 | . . 1 . Propulsion 1 | . . . 1 Utility 1 | . . . 1 Weapon 1 | . . 1 . Parts Attached 55 | 5 17 12 21 Power 11 | 1 . 2 8 Engine 7 | 1 . 2 4 Core 4 | . . . 4 Reactor . | . . . . Propulsion 16 | 2 7 4 3 Treads 2 | . . 2 . Leg 8 | 2 1 2 3 Wheel . | . . . . Hover 2 | . 2 . . Flight 4 | . 4 . . Utility 8 | . 4 1 3 Device 3 | . 1 . 2 Storage 3 | . 2 . 1 Processor 1 | . 1 . . Hackware . | . . . . Protection 1 | . . 1 . Artifact . | . . . . Weapon 20 | 2 6 5 7 Energy Gun 2 | 2 . . . Energy Cannon 3 | . 2 1 . Ballistic Gun 10 | . 1 3 6 Ballistic Cannon 1 | . . . 1 Launcher 4 | . 3 1 . Special Weapon . | . . . . Impact Weapon . | . . . . Slashing Weapon . | . . . . Piercing Weapon . | . . . . Special Melee Weapon . | . . . . Unidentified Prototypes . | . . . . Parts Lost 28 | . 4 4 20 Power 7 | . 1 . 6 Propulsion 7 | . 1 1 5 Utility 2 | . . . 2 Weapon 12 | . 2 3 7 Highest Loss Streak 10 | . 2 3 10 To Critical Strikes . | . . . . Average Slot Usage (%) 76 | . 66 82 90 Engine 7 | . 1 13 8 Treads 4 | . . 12 . Leg 6 | . 3 . 24 Hover 4 | . 7 3 . Flight 2 | . 4 . . Device 4 | . . 6 12 Storage 11 | . 13 11 9 Processor 3 | . 6 . . Protection 2 | . . 4 4 Energy Gun 2 | . 6 . . Energy Cannon 4 | . 6 3 . Ballistic Gun 10 | . 6 14 15 Launcher 9 | . 7 12 8 Naked Turns . | . . . . Heaviest Build 62 | 7 49 60 62 Greatest Support 40 | 20 20 40 39 Greatest Overweight (x) 16 | . 11 16 14 Average Overweight (x) 3 | . 5 2 1 Largest Inventory Capacity 20 | 5 20 20 20 Average Capacity 19 | 5 19 20 20 Most Carried 13 | 3 11 12 13 Average Carried 7 | . 6 7 9 Final Capacity 20 | 5 20 20 20 Final Carried 10 | 1 6 10 6 Class Distribution -------------------- 51% | Mutant 18% | Gunner 16% | Scavenger-Tank 7% | Tank 4% | Scavenger-Gunner Dominant Class ---------------- Mutant | -10/Materials Scavenger-Tank | -9/Materials Gunner | -8/Materials Resources | -11 -10 -9 -8 ----------- Run | Yrd Mat Mat Mat Matter Collected 1339 | 210 171 433 525 Remotely . | . . . . Salvage Created 1931 | 37 427 650 817 Parts 152 | 2 36 50 64 Haulers Intercepted . | . . . . Recyclers Shooed 1 | . . 1 . Parts Field Recycled . | . . . . Retrieved Matter . | . . . . Parts Self-Destructed . | . . . . Prevented . | . . . . Kills | -11 -10 -9 -8 ------- Run | Yrd Mat Mat Mat Combat Hostiles Destroyed 51 | 1 14 14 22 Guns 22 | . 8 9 5 Cannons 4 | . 3 . 1 AOE 25 | 1 3 5 16 Classes Destroyed 10 | 1 5 2 2 Worker 2 | . 1 . 1 Builder 5 | . 1 . 4 Tunneler 1 | . . . 1 Recycler 4 | . 1 1 2 Watcher 9 | . 2 3 4 Swarmer 9 | . 9 . . Grunt 25 | 1 5 6 13 Duelist 1 | . . 1 . Sentry 14 | . . 7 7 Hunter 2 | . . . 2 Best Kill Streak 8 | 1 7 3 8 Combat Bots Only 7 | 1 6 3 7 Max Kills in Single Turn 3 | 1 3 2 2 Gunslinging 1 | . 1 . . Exploded 2 | 1 2 1 2 Melee . | . . . . Uniques/NPCs Destroyed . | . . . . Combat | -11 -10 -9 -8 -------- Run | Yrd Mat Mat Mat Hostile Shots Fired 443 | 3 105 75 260 Missed 141 | 1 38 24 78 Damage Taken 3644 | 16 531 676 2421 Core 822 | . 125 147 550 Absorbed by Shields . | . . . . Redirected to Shielding 51 | . . 2 49 Ignored by Resistances 1029 | 5 170 190 664 Regen/Repaired (Parts) 19 | . 19 . . Core Remaining (%) 71 | 100 50 63 . Volleys Fired 120 | 1 29 35 55 Largest 3 | 2 2 3 3 Hottest 126 | 90 90 126 99 Shots Fired 247 | 2 47 70 128 Gun 171 | 2 36 49 84 Cannon 18 | . 8 4 6 Launcher 58 | . 3 17 38 Special . | . . . . Kinetic 147 | . 8 49 90 Thermal 20 | 1 15 4 . Explosive 58 | . 3 17 38 Electromagnetic 22 | 1 21 . . Robot Hit Streak 24 | 1 19 24 11 Robot Miss Streak 7 | 1 3 3 7 Penetration Max . | . . . . Secondary Targets 1 | . 1 . . Max Gunslinging Chain 1 | . 1 . . Shots Hit Robots 156 | 1 30 39 86 Core Hits 130 | 1 21 28 80 Critical Kills 1 | . 1 . . Critical Parts Destroyed . | . . . . Critical Strikes 2 | . 2 . . Destroy 1 | . 1 . . Corrupt 1 | . 1 . . Melee Attacks . | . . . . Impact . | . . . . Slashing . | . . . . Piercing . | . . . . Sneak Attacks . | . . . . Combat Hostiles . | . . . . Follow-up Attacks . | . . . . Damage Inflicted 5543 | 35 963 913 3632 Guns 1965 | 12 322 432 1199 Cannons 295 | . 139 53 103 Explosions 3236 | 23 502 399 2312 Melee . | . . . . Ramming 47 | . . 29 18 Kinetic 1799 | . 65 432 1302 Thermal 562 | 23 486 53 . Explosive 2903 | . 192 399 2312 Electromagnetic 232 | 12 220 . . Impact . | . . . . Slashing . | . . . . Piercing . | . . . . Highest Corruption . | . . . . Average Corruption . | . . . . Corruption Purged . | . . . . Corruption Blocked . | . . . . Overload Shots . | . . . . Overflow Damage 105 | . 74 18 13 Projectiles 8 | . 8 . . Explosions 97 | . 66 18 13 Melee . | . . . . Knockbacks 2 | . . . 2 Impact 1 | . . . 1 Kinetic 1 | . . . 1 Secondary . | . . . . Self-Inflicted Damage 392 | . 66 114 212 Shots 16 | . 1 5 10 Rammed 7 | . 1 6 . Targets Rammed 10 | . 1 6 3 Kicked 3 | . . . 3 Crushed . | . . . . Highest Temperature 154 | 30 154 99 135 Average Temperature 33 | 18 43 23 32 Received Heat Transfer 1641 | 12 174 303 1152 Siege Activations . | . . . . Robots Corrupted . | . . . . Combat Hostiles . | . . . . Parts Fried 1 | . 1 . . Impact Corruptions . | . . . . Robots Melted . | . . . . Combat Hostiles . | . . . . Parts Melted 3 | . 2 1 . Heat Transferred 768 | 50 607 111 . Parts Sabotaged . | . . . . Parts Stolen . | . . . . Parts Stripped . | . . . . Power Chain Reactions 2 | 1 1 . . Alert | -11 -10 -9 -8 ------- Run | Yrd Mat Mat Mat Peak Influence 376 | 20 153 249 376 Initial 11 | . 11 . . Average 67 | 2 36 50 200 Maximum Alert Level 1 | . . 1 1 Low Security (%) 91 | 100 100 94 58 Level 1 8 | . . 5 41 Level 2 . | . . . . Level 3 . | . . . . Level 4 . | . . . . Level 5 . | . . . . High Security . | . . . . Max Security . | . . . . Squads Dispatched 9 | . 2 . 7 Investigation 2 | . 2 . . Extermination . | . . . . Reinforcement 4 | . . . 4 Assault . | . . . . Garrison 3 | . . . 3 Intercept . | . . . . Searches Triggered . | . . . . Construction Impeded 3 | . . . 3 Haulers Reinforced . | . . . . Active Scanning Responses . | . . . . Cargo Convoy Interrupts . | . . . . Stealth | -11 -10 -9 -8 --------- Run | Yrd Mat Mat Mat Distress Signals 3 | . 1 . 2 Communications Jammed . | . . . . Distress Signals . | . . . . Times Spotted 73 | 1 20 20 32 Peak Tracking Total 5 | . 5 4 5 Tactical Retreats 2 | . . 1 1 Traps | -11 -10 -9 -8 ------- Run | Yrd Mat Mat Mat Traps Triggered 1 | . 1 . . Indirectly . | . . . . Trap Hack Attempts . | . . . . Triggered . | . . . . Disarmed . | . . . . Reprogrammed . | . . . . Reused . | . . . . Traps Extracted . | . . . . Installed . | . . . . Triggered . | . . . . Machines | -11 -10 -9 -8 ---------- Run | Yrd Mat Mat Mat Machines Disabled 11 | . 3 1 7 Max in Single Turn 2 | . 2 1 2 Machines Repaired . | . . . . Machines Dismantled . | . . . . Machines Sabotaged . | . . . . Overloaded Fab Kills . | . . . . Hacking | -11 -10 -9 -8 --------- Run | Yrd Mat Mat Mat Machines Accessed 10 | . 4 5 1 Terminals 7 | . 3 4 . Fabricators . | . . . . Repair Stations 1 | . 1 . . Recycling Units 1 | . . . 1 Scanalyzers 1 | . . 1 . Garrison Access . | . . . . Total Hacks 36 | . 14 18 4 Successful 26 | . 10 12 4 Failed 10 | . 4 6 . Catastrophic 3 | . 2 1 . Database Lockouts . | . . . . Manual . | . . . . Terminals 24 | . 8 16 . Fabricators . | . . . . Repair Stations 6 | . 6 . . Recycling Units 4 | . . . 4 Scanalyzers 2 | . . 2 . Garrison Access . | . . . . Terminal Hacks 15 | . 5 10 . Record 11 | . 2 9 . Prototype ID Bank 1 | . 1 . . Emergency Access Points 1 | . . 1 . Alert Level 1 | . 1 . . Hauler Manifests 1 | . 1 . . Fabricator Hacks . | . . . . Repair Station Hacks 5 | . 5 . . Scan Component 3 | . 3 . . Repair 2 | . 2 . . Recycling Unit Hacks 4 | . . . 4 Recycle Component 1 | . . . 1 Process 1 | . . . 1 Report Inventory 1 | . . . 1 Retrieve Matter 1 | . . . 1 Scanalyzer 2 | . . 2 . Insert Component 1 | . . 1 . Analyze 1 | . . 1 . Garrison Access Hacks . | . . . . Unauthorized Hacks . | . . . . Terminals . | . . . . Fabricators . | . . . . Repair Stations . | . . . . Recycling Units . | . . . . Scanalyzers . | . . . . Garrison Access . | . . . . Data Cores Recovered . | . . . . Used . | . . . . Hacking Detections 6 | . 3 2 1 Full Trace Events 3 | . 1 1 1 Feedback Events . | . . . . Feedback Blocked . | . . . . Robot Schematics Acquired . | . . . . Robots Built . | . . . . Authchips . | . . . . Time . | . . . . Total Robot Build Rating . | . . . . Part Schematics Acquired 1 | . . 1 . Parts Built . | . . . . Authchips . | . . . . Time . | . . . . Total Part Build Rating . | . . . . Parts Repaired 2 | . 2 . . Time 52 | . 52 . . Parts Recycled 1 | . . . 1 Recycled Matter 39 | . . . 39 Retrieved Matter 39 | . . . 39 Retrieved Components . | . . . . Parts Scanalyzed 1 | . . 1 . Part Schematics Acquired 1 | . . 1 . Parts Damaged . | . . . . Bothacking | -11 -10 -9 -8 ------------ Run | Yrd Mat Mat Mat Used RIF Installer . | . . . . Robots Hacked . | . . . . Non-combat . | . . . . Combat . | . . . . Robot Hacks Applied . | . . . . Relay Couplers Released . | . . . . Fabnet Peak Effective % . | . . . . Robots Rewired . | . . . . Allies Hacked . | . . . . Hacks Repelled . | . . . . Allies | -11 -10 -9 -8 -------- Run | Yrd Mat Mat Mat Total Allies . | . . . . Largest Group . | . . . . Highest-Rated Group . | . . . . Highest-Rated Ally . | . . . . Total Orders . | . . . . Ally Attacks . | . . . . Total Damage . | . . . . Kills . | . . . . Allies Corrupted . | . . . . Allies Melted . | . . . . Intel | -11 -10 -9 -8 ------- Run | Yrd Mat Mat Mat Robot Analysis Total . | . . . . Derelict Logs Recovered . | . . . . Drone Launches . | . . . . Drone Recoveries . | . . . . Exploration | -11 -10 -9 -8 ------------- Run | Yrd Mat Mat Mat Turns Passed 7800 | 137 3465 2926 1272 Spaces Moved 2314 | 121 736 904 553 Core 55 | 31 . 23 1 Treads 676 | . . 676 . Legs 882 | 90 192 48 552 Wheels . | . . . . Hover 551 | . 394 157 . Flight 150 | . 150 . . Fastest Speed 50 | 50 120 240 180 Average Speed 316 | 102 454 307 193 Slowest Speed 930 | 120 930 850 750 Overloaded Moves . | . . . . Propulsion Burnouts . | . . . . Robots Hopped . | . . . . Cave-ins Triggered 1 | . . . 1 Exploration Rate (%) 38 | 8 57 52 36 Regions Visited 3 Branch Regions . Pre-discovered Areas . | . . . . Known Exits Taken . | . . . . Unknown Exits Taken 3 | 1 1 1 . Scrap Searched . | . . . . Spaces Dug 19 | . . 19 . Terrain Destroyed 403 | . 22 143 238 Melee . | . . . . Projectile . | . . . . AOE 403 | . 22 143 238 Terrain Rammed . | . . . . Walls Destroyed . | . . . . Machines Disabled . | . . . . Actions | -11 -10 -9 -8 --------- Run | Yrd Mat Mat Mat Total 2566 | 132 812 979 643 Wait 3 | . . 3 . Move 2311 | 120 735 903 553 Hop . | . . . . Pick Up 51 | 6 19 16 10 Fast Attach . | . . . . Attach 37 | 5 10 8 14 Detach 5 | . 4 . 1 Swap 18 | . 7 4 7 Drop 11 | . 7 4 . Fire 120 | 1 29 35 55 Melee . | . . . . Ram 1 | . 1 . . Kick 3 | . . . 3 Crush 6 | . . 6 . Escape Stasis . | . . . . Rewire . | . . . . Trap . | . . . . Miscellaneous . | . . . . Route ------- -11/Scrapyard -10/Materials (discovered 3 exits: *Mat / *Min x2) -9/Materials (discovered 3 exits: *Mat x2 / [*Min]) -8/Materials (discovered 1 exit: [*Fac]) History --------- Turn | Location | Event 2 | -11/Scrapyard | Met Revision 17 113 | -11/Scrapyard | Discovered new exit (range 8) 138 | -11/Scrapyard | Entered Materials 138 | -10/Materials | Discovered new exit (range 14) 314 | -10/Materials | Build established: Mutant 578 | -10/Materials | Discovered new exit (range 8) 2306 | -10/Materials | Repaired Beam Cannon 2332 | -10/Materials | Repaired Flight Unit 2451 | -10/Materials | Identified exit to Mines 3053 | -10/Materials | Discovered new exit (range 15) 3603 | -10/Materials | Entered another Materials area 3603 | -9/Materials | Evolved 2 slots: Power x1, Weapon x1 3909 | -9/Materials | Build established: Gunner 4504 | -9/Materials | Lost 3 parts (1n2w) 4523 | -9/Materials | Discovered new exit (range 9) 4750 | -9/Materials | Build established: Mutant 5247 | -9/Materials | Build established: Scavenger-Gunner 5617 | -9/Materials | Build established: Scavenger-Tank 5631 | -9/Materials | Discovered new exit (range 8) 6232 | -9/Materials | Discovered new exit (range 16) 6529 | -9/Materials | Entered another Materials area 6529 | -8/Materials | Evolved 2 slots: Propulsion x1, Utility x1 6860 | -8/Materials | Build established: Tank 7200 | -8/Materials | Lost 6 parts (2p1n1u2w) 7233 | -8/Materials | Discovered new exit (range 12) 7537 | -8/Materials | Build established: Gunner 7736 | -8/Materials | Core integrity fell below 50% 7781 | -8/Materials | Crushed by falling debris 7787 | -8/Materials | Core integrity fell below 20% 7801 | -8/Materials | Destroyed 7 combat bots 7801 | -8/Materials | Destroyed by Y-45 Defender with Heavy Assault Rifle Last Messages --------------- K-01 Serf collects debris. Mni. Grenade Launcher destroyed. K-01 Serf collects debris. K-01 Serf suffers critical hit (Burn). K-01 Serf destroyed. U-05 Engineer lays Concrete. K-01 Serf cleans the Garrison Access. U-05 Engineer lays Concrete. Critical hit (Burn: +37). K-01 Serf collects debris. K-01 Serf cleans the Garrison Access. U-05 Engineer lays Concrete. Hvy. Assault Rifle destroyed. U-05 Engineer builds a Wall. K-01 Serf collects debris. The unstable cave ceiling collapses. U-05 Engineer builds a Wall. Hvy. Assault Rifle destroyed. Critical hit (Burn: +37). K-01 Serf collects debris. Map ----- +----------------------------------------------------+ | ??????????# ! # ! | | ??????????# ! # ########### | | ??????????# ##### # ## | | ??????????# ! = #### #### ########### | | ??????????###########??###### ##??# ## # | | ????????????????????????????###??## # # | | ?????????????????????????????????## # # | | ????????????????????????????????### # # | | ????????????????????????????????# # # = + | | ????????????????????????########### # ! # | | ??????????????????????" # # # # | | ????????????????????""" # """ "" # ## [ # | | ??????????????????# " # """ "" # ## # | | ??????????????????+ " """ "" + ########### | | ??????????????????? # ########### | | ??????????????????## # | | ??????????????????? # ########### | | ???????????????????# ] [ # # !!! ##### | | ??????????????????## ## ###### # !!! ## | | ?????????????????## k # # !!! ## | | ?????????????????# "" g + + ## | | ??????????????????# "G # # ## " | | ??????????????????# ""Y* ####### # ## " | | ?????????????????## [###?## ######### | | ????????????# #### *k ##### #??????# | | ????????????# g =%@= * #??????# | | ????????? a ! = = %= #??????# | | ????????????# %[ #??????# | | ????????????### # # k# #### #??????# | | ????????????????#?# # ######+#####????#### | | ??????????????????# ## ## #???????? | | ??????????????????# ## ### """"""" #???????? | | ??????????????????# ## #?# """"""" #???????? | | ??????????????????######### ?# """"""" #???????? | | ??????????????????????????? ?# """"""" #???????? | | ??????????????????????????? ?# """"""" #???????? | | ???????????????????????????#+### #???????? | | ???????????????????????????????# ! [ ! #???????? | | ???????????????????????????????###########???????? | | ?????????????????????????????????????????????????? | | ?????????????????????????????????????????????????? | | ?????????????????????????????????????????????????? | | ?????????????????????????????????????????????????? | | ?????????????????????????????????????????????????? | | ?????????????????????????????????????????????????? | | ?????????????????????????????????????????????????? | | ?????????????????????????????????????????????????? | | ?????????????????????????????????????????????????? | | ?????????????????????????????????????????????????? | | ?????????????????????????????????????????????????? | +----------------------------------------------------+ Best States ------------- Heat Dissipation 41 Energy Generation 25 Energy Capacity 415 Matter Stores 300 Matter Capacity 300 Sight Range 16 Terrain Scan Density 10 ECM Strength 1 Resistance: KI 20 Resistance: TH 20 Resistance: EX 20 Resistance: EM 20 Resistance: I 20 Resistance: S 20 Resistance: P 20 Propulsion Shielding 33 Evasion (%) 55 Recoil Reduction 2 Offensive Hacking 10 Item Schematics ----------------- Flight Unit | -9/Materials | Scanalyzed Robot Schematics ------------------ None Fabricated ------------ Nothing Alien Tech Used ----------------- None Achievements -------------- Crack Shot Let's See Who's Tougher Librarian Oops Part-time Mechanic Remodeling Shopping List Storm Trooper Uninvited Guest Unlikely Earthworm Challenges ------------ None Game ------ Seed BurstSensorInjector Manual? 0 Play Time 00:50:12 Cumulative 0.9 hours Start 2024.04.19 @ 20:15:40 End 2024.04.19 @ 21:05:03 Sessions 1 Manual Loads 0 Difficulty Adventurer Special Mode None Game No. 2 Rogue 0 Adventurer 2 Explorer 0 Win Type - Total 0 Types 0/0/0/0/0/0/0/0/0 Lore% 1 Gallery% 3 Achievement% 5 Wizard Run 0 Options --------- Layout 1 ASCII 0 Keyboard 0 Movement Arrows Keybinds 0 Fullscreen 1 Font 48/Smallcaps Map View 50x35 Zoom Use 0% Tactical HUD 0 Map Filters NONE Filters NONE Steam 1 RUN: 41e04acf-695b-4df6-81ac-a65f250aea7b